{"text_format":"1","workbook":"xlsx","n_sheets":5,"sheets":["Cover Sheet","Non-Expansion_Checklist","WB Non-Expansion Checklist","Data Checklist","Microsoft Project Dates"],"not_rendered":{"charts":0,"images":0,"macros":1,"external_links":1,"defined_names":31,"comments":0,"pivot_tables":0},"unopened":[],"bounds":{"document_bytes":16777216,"sheet_cells":100000,"rows_first":2000,"rows_last":500,"rows_between":2000,"halvings":0,"cell_chars":16384,"cell_head_chars":4096},"cells_cut":0,"cells_raw":0,"read":"whole","date_system":"1900"}

{"sheet":"Cover Sheet","index":0,"n_rows":14,"n_cols":3,"rows_kept":14,"cut":false,"hidden":true,"merged":[[3,0,3,1],[0,0,0,5]]}
["UIC Application & Checklist "]
[]
[]
["Project  Category:",null,{"$f":"IF(ISTEXT(#REF!),#REF!,\"Application Checklist not yet filled out\")","v":"Application Checklist not yet filled out"}]
[null,"Project Type:",{"$f":"IF(ISTEXT(#REF!),#REF!,\"Application Checklist not yet filled out\")","v":"Application Checklist not yet filled out"}]
[null,{"$f":"#REF!","v":{"$error":"#REF!"}},{"$f":"IF(ISTEXT(#REF!),#REF!,\"Application Checklist not yet filled out\")","v":"Application Checklist not yet filled out"}]
[null,{"$f":"#REF!","v":{"$error":"#REF!"}},{"$f":"IF(ISTEXT(#REF!),#REF!,\"Application Checklist not yet filled out\")","v":"Application Checklist not yet filled out"}]
[null,{"$f":"#REF!","v":{"$error":"#REF!"}},{"$f":"IF(ISTEXT(#REF!),#REF!,\"Application Checklist not yet filled out\")","v":"Application Checklist not yet filled out"}]
[null,{"$f":"#REF!","v":{"$error":"#REF!"}},{"$f":"IF(ISTEXT(#REF!),#REF!,\"Application Checklist not yet filled out\")","v":"Application Checklist not yet filled out"}]
[null,{"$f":"#REF!","v":{"$error":"#REF!"}},{"$f":"IF(ISTEXT(#REF!),#REF!,\"Application Checklist not yet filled out\")","v":"Application Checklist not yet filled out"}]
[null,{"$f":"#REF!","v":{"$error":"#REF!"}},{"$f":"IF(ISTEXT(#REF!),#REF!,\"Application Checklist not yet filled out\")","v":"Application Checklist not yet filled out"}]
[null,{"$f":"#REF!","v":{"$error":"#REF!"}},{"$f":"IF(ISTEXT(#REF!),#REF!,\"Application Checklist not yet filled out\")","v":"Application Checklist not yet filled out"}]
[]
[null,"Date PDF generated:",{"$f":"TODAY()","v":"2022-02-03"}]

{"sheet":"Non-Expansion_Checklist","index":1,"n_rows":55,"n_cols":10,"rows_kept":55,"cut":false,"hidden":false,"merged":[[22,0,22,7],[1,0,1,7],[2,0,2,7],[3,0,3,7],[5,0,5,7],[43,2,43,3],[39,2,39,3],[34,0,37,0],[34,2,34,3],[35,2,35,3],[36,2,36,3],[37,2,37,3],[59,0,59,7],[51,2,51,3],[45,0,48,0],[45,2,45,3],[46,2,46,3],[47,2,47,3],[48,2,48,3],[53,0,54,0],[53,2,53,3],[54,2,54,3],[50,0,51,0],[50,2,50,3],[32,2,32,3],[27,0,32,0],[31,2,31,3],[29,2,29,3],[30,2,30,3],[28,2,28,3],[27,2,27,3]]}
[]
["UNDERGROUND INJECTION CONTROL (UIC) "]
["Geologic Energy Management Division\nNON-EXPANSION PROJECT INFORMATION CHECKLIST\nThe purpose of this document is to streamline CalGEM and Water Boards review\n(Dec 2021)"]
["The tables below summarize in checklist form the shared understanding of CalGEM and the Water Boards regarding the anticipated typical content and format of the project information to be forwarded \nfrom the CalGEM to the Water Boards for new drill injection wells or wells converted to injection in approved underground injection projects."]
[]
["Note that this checklist does not necessarily identify all information an operator must provide to the CalGEM in connection with addition of wells to an approved underground injection project.\nThe requirements for approval and operation of underground injection projects are governed by applicable statutes and regulations. This checklist is not a substitute for those requirements."]
[]
[null,null,null,null,null,"Project Category:","Non Expansion NOI(s) Only"]
[null,null,null,null,null,"Project Type (Steam injection, Water Flood, Water Disposal):"]
[null,null,null,null,null,"Number of Proposed Injection Wells:"]
[null,null,null,null,null,"Number of Existing Injection Wells:"]
[null,null,null,null,null,"Operator: "]
[null,null,null,null,null,"Project No.: "]
[null,null,null,null,null,"Field Name: "]
[null,null,null,null,null,"Direct Injection Zone(s):"]
[null,null,null,null,null,"Date of Issue of Most Recent PAL:"]
[null,null,null,null,null,"Date of Issue of Most Recent Project Approval/Review:"]
[null,null,null,null,null,"CalGEM Reviewing Engineer:"]
[null,null,null,null,null,"Date Project Submitted:"]
[]
[]
[]
["Unless otherwise indicated, all authority references in the tables below are to sections within California Code of Regulations, title 14. "]
[]
[null,null,null,null,"Reference\n Authority","Complete","Location in the Data Package","Operator Notes Supporting / Clarifying Data Presented","Reviewed","CalGEM Notes"]
[]
[]
[" Project/Well Summary","IP(3)","Anticipated daily rate of injection (by well) for all newly proposed injection wells.\n\nThe anticipated total injection volumes shall also be included for disposal wells.\n\nCalGEM and Water Boards anticipate this data to be based on maximum values.",null,"1724.7(a)(3)(C) \n1724.7(b) "]
[null,"OI(2)","All data supporting the determination of the maximum allowable surface injection pressure for each newly proposed injection well in the underground injection project, as described in Section 1724.10.3, including all calculations, variables, citations and assumptions.",null,"1724.7.(a)(4)\n1724.10.3\n1724.7(b)"]
[null,"OI(3)","CalGEM ONLY: A copy of the most recent Project Approval Letter (PAL).",null,"1724.7(a)(6)"]
[null,"OI(4)","CalGEM ONLY: A written statement stating that CalGEM staff has reviewed the project documents and agrees with the Operator’s evaluation that:\nThe non-expansion well(s) being added to the UIC project are consistent with the conditions in the existing PAL."]
[null,"OI(5)","All updates to project level material are clearly dated.   ",null,"1724.7(b,c)"]
[null,"DF(2)","All maps, diagrams, and exhibits are clearly and appropriately labeled, such as to title, scale, and purpose, and clearly identify wells, boundaries, zones, contacts, and other relevant data. If previously submitted maps are used, they must reflect the current conditions of the area the map is representing.\n\nDocumentation to support NOI's on existing projects may include excerpts from previously submitted maps.",null,"1724.7(c) "]
[]
["Engineering Study","ES(1)","A description of how the area of review was determined, including calculations, variables, citations, and assumptions, for the proposed injectors - Previously submitted calculations may be incorporated by reference if the pressure in the vicinity of proposed injectors is shown to be stable or decreasing. Updated\ncalculations shall be stamped and dated.\n\nFor existing water disposal projects, the current AOR needs to be determined. \n\nCalGEM and Water Boards agree the AOR determination should include injection and production impacts of offset projects that could potentially interact with the proposed project, with due consideration for the geology, engineering aspects, and the nature of injected fluids.",null,"1724.7(a)(1)(A)\n1724.7(b) "]
[null,"ES(2)","A map of the area of review showing the location of the following: \n   (1) All wells within and adjacent to the boundary of the area of review; \n   (2) All water supply wells that are within the area of review and identified in public records or otherwise known to the operator;\n   (3) Any underground disposal horizons, mining, and other subsurface industrial activities not associated with oil and gas production within the area of review, to the extent such information is publicly available or otherwise known to the operator; and \n   (4) Traces of the geologic cross sections provided as part of the Geologic Study.\n\nThe map shall show all existing injection wells and  AOR(s), the location (surface and bottom hole) and type of the proposed non-expansion well(s), the determined AOR and all other wells within the AOR. \n\nIn cases where TDS is below 10,000 ppm, the Aquifer Exemption boundary shall be shown on the map, or a second map included showing the position of the project or proposed wells relative to the Aquifer Exemption boundary .\n\nIn cases where TDS is 10,000 ppm or higher, operator should provide the supporting data to demonstrate that approved injection zone is at or above 10,000 ppm.                                                                                                                                                           \n\n“Regarding the subsurface activities mentioned in item #3 of the area of review map contents referenced above (corresponding to section 1724.7(a)(1)(B)(iii) of CalGEM’s UIC regulations), CalGEM anticipates the operator of record for the injection project will provide updates to CalGEM promptly if and when the operator becomes aware of pertinent new information. This is part of the general regulatory requirement for the operator of an injection project to ensure that the supporting data for the injection project is current and accurately reflective of the project setting throughout the operating life of the project.”                                                                                                                                                             ",null,"1724.7(a)(1)(B)\n1724.8"]
[null,"ES(3)","For the proposed injectors, and any wells within their AOR,  a compendium of the following information:\n   (1) For all wells depicted in the map of the area of review (including water supply wells to the extent information is known or publicly available), the API numbers, or other identifying information for wells that do not have API numbers, and the wellbore paths, total depths, and depths of completion interval(s) of the wells;\n   (2) The type and status of water supply wells depicted in the map of the area of review; and\n   (3) All the casing diagram data specified in Section 1724.7.1, provided in the form of graphical casing diagrams or flat-file data sets, for all wells that are within the area of review and that are completed in or penetrating the injection zone for the underground injection project or a deeper zone, including directionally drilled wells that intersect the area of review in the injection zone or a deeper zone.\n\nWhen proposed wells are within the scope of a recent project approval, data from that application may be incorporated by reference.",null,"1724.7(a)(1)(C) \n1724.7.1\n1724.8\n1724.7(b)"]
[null,"ES(4)","Any adjustments to the planned well-drilling and plugging-and-abandonment program to complete the project, including an updated flood-pattern map, if applicable, showing all injection, production, and plugged and abandoned wells, and unit boundaries.  \n\nCalGEM recognizes plans are subject to change .  It is the operator's responsibility to update project data accordingly prior to approval.\n",null,"1724.7(a)(1)(D)\n1724.8\n1724.7(b)"]
[]
["Geologic Study Update","GS(1)","CalGEM must be kept up to date with the latest pressure measurements. Related tables and maps must be updated.. \n                                                                                                                                                                                                                                                                                                                                                                                                                            The project data must include geologic information describing the reservoir characteristics of the injection zone, such as porosity, permeability, average thickness, areal extent, fracture gradient, original and present temperature and pressure.  The scope of the geologic characterization shall encompass the caprock and sealing mechanisms, the injection zone including the vertical interval above and below the approved injection zone, and the areas where potential migration of fluid or entrapment of migrated fluid could occur. \n\nCalGEM and Water Boards agree all supporting data shall be the most current, accurate and relevant.  All data sources shall be cited.  ",null,"1724.7(a)(2)(A)\n1724.7(a)(6)\n1724.7(b)\n"]
[]
[null,null,null,null,null,"Project Level Information Below Must Be On File Before Sending To Water Boards For Consult:"]
[]
["Project Cover Page","CP(1)","The project data must contain a cover page with a statement that appropriate licensed professionals, whose signatures and stamps appear at the bottom of the page, are responsible for all data, interpretations, and calculations, if any, subject to the requirements of Business and Professions Code sections 6735, 7835, and 7835.1.  If the operator determines that the submission does not include data, interpretations, or calculations subject to the requirements of Business and Professions Code sections 6735, 7835, and 7835.1, the cover page must so indicate, and must provide the name(s) and signature(s) of the individual(s) responsible for preparing the submission.",null,"1724.7(d)"]
[]
["Geological Study","GS(2)","The project data must include a structural contour map drawn on a geologic marker at or near the top and base of each injection zone in area of review (two maps), indicating faults and any lateral containment features. If faults are identified, there must also be analysis addressing whether or not the faults are capable of confining fluid to the approved injection zone and any geologic features that could result in the migration of fluid out of the approved injection zone. \n\n If a GIS shapefile is submitted, layers with labeled wellbore paths of all existing and proposed wells in the map area would lead to a more comprehensive understanding of the system.",null,"1724.7(a)(2)(C)\n1724.7(b)"]
[null,"GS(3)","The project data must include an isopach map (net)  of each injection zone or subzone in the area of review.",null,"1724.7(a)(2)(D)\n1724.7(b)"]
[null,"GS(4)","The project data must include at least two geologic cross sections in the area of review through at least three wells, including one injection well.  As near as possible, one of the geologic cross sections shall be along strike and the other shall be perpendicular to strike. The cross section shall extend from the base of the deepest production or injection zone to surface and indicate the location of the approved injection zone, the base of freshwater, and the base of the USDW.",null,"1724.7(a)(2)(E)\n1724.7(b) "]
[null,"GS(5)","The project data must include a representative electric log to a depth below the deepest producing or injection zone, whichever is deeper, identifying all geologic units, formations, USDWs, freshwater aquifers, and oil or gas zones. The electric log shall identify the API number of the well that was logged.",null,"1724.7(a)(2)(F)\n1724.7(b)"]
[]
["Project Injection Plan","IP(1)","The project data must include a statement of primary purpose of the project.",null,"1724.7(a)(3)(A)\n1724.7(b)"]
[null,"IP(4)","The project data must include Identification of all wells that are part of the project, including injection wells, affected production wells, water source wells, observation or other wells and any planned wells to the extent known. The depths of water source wells shall also be provided.",null,"1724.7(a)(3)(D)\n1724.7(b)"]
[]
["Project  Situational  Information","SI(1)","The project data includes  any other data that, in the judgement of the CalGEM, or as required by the Project Approval Letter, are  pertinent and necessary for the proper evaluation of the underground injection project.   Examples of such data are:     Tabulated data and a graph of oil, water, gas production rates, water cut in percentage, water oil ratio (WOR), gas oil ratio (GOR) and injection rates vs. time for each existing injection pattern, isochore maps, isogor maps, isobar maps, three-dimensional geologic models, reservoir simulation results, isopach maps of the confining layers, equipment diagrams, and safety programs. ",null,"1724.7(a)(6)\n1724.10(l)"]
[null,"SI(2)","Any alternative data accepted by CalGEM in lieu of the default regulatory requirements for project data, as described in Section 1724.7(e).",null,"1724.7(e)"]

{"sheet":"WB Non-Expansion Checklist","index":2,"n_rows":22,"n_cols":9,"rows_kept":22,"cut":false,"hidden":false,"merged":[[3,0,3,6],[2,0,2,6],[1,0,1,6],[5,0,5,6],[8,2,8,3],[9,0,21,0],[9,2,9,3],[10,2,10,3],[11,2,11,3],[12,2,12,3],[13,2,13,3],[14,2,14,3],[20,2,20,3],[21,2,21,3],[15,2,15,3],[16,2,16,3],[17,2,17,3],[18,2,18,3],[19,2,19,3]]}
[]
["UNDERGROUND INJECTION CONTROL (UIC)"]
["WATER BOARDS\nNON-EXPANSION PROJECT INFORMATION CHECKLIST\nThe purpose of this document is to streamline CalGEM and Water Boards review\n (Dec 2021)"]
["The table below summarizes in checklist form the minimum supplemental information required that the Water Boards need to conduct its review. The Water Boards may ask for additional information, if needed, to ensure the protection of water quality and beneficial use waters."]
[]
["The information requested below is made in lieu of requiring operators to file a report of discharge under California Water Code section 13260 and is consistent with authority provided in Water Code sections 13260, 13267, and 13267.5."]
[]
[]
[null,null,"To help expedite the Water Board's review, please identify the exact location of the data indicated below.",null,"Complete","Location in the Data Package","Operator Notes Supporting / Clarifying Data Presented","Reviewed","Water Board Notes"]
["Water Boards ","W-CP","The non-expansion permit package must include a statement and supporting rationale demonstrating that injected fluids have not and will not migrate beyond the boundaries of the exempt aquifer or into a underground source of drinking water (USDW). Any evaluation of past, or anticipated future, migration of injected fluids involving geologic or engineering interpretation must be conducted by, or under the direct supervision of, a state-registered professional geologist or professional engineer and signed and stamped by a registered professional to the extent required by California Business and Professions Code sections 6735, 7835, and 7835.1."]
[null,"W-ES(1)","If not previously provided or different than what was previously submitted, provide the rationale for determining the non-expansion area of review (AOR) with supporting calculations; including the assumptions associated with the calculations."]
[null,"W-ES(2)","Non-expansion AOR calculations must use an accurate representation of all the relevant parameters from as near as possible to the non-expansion AOR, including the static pressures or current temperatures of the injection zone(s) and USDW(s) (measured within the past year) within the non-expansion AOR. Additionally, the remaining permitted duration of injection and permitted maximum daily rate of injection (by well) must be used when calculating the non-expansion AOR. If a range of values for the input parameters is provided, then multiple non-expansion AORs need to be calculated to provide the most conservative estimate of the distance injected fluids may migrate. Supporting data must be provided. \n\nA zone of endangering influence (ZEI) calculation may meet the regulatory requirements of AOR calculation. "]
[null,"W-ES(3)","Provide an evaluation of any potential increase in reservoir pressure and fluid migration due to either overlapping ZEIs, neighboring injection projects, or other relevant inputs into the system (i.e. faults, facies changes and stratigraphic pinchouts that may act as flow barriers). \n\nIf the change in reservoir pressure due to injections will be reduced by production wells, the Operator will submit calculations that show how the change in reservoir pressure will be offset by the production wells. Injection and production wells used in this evaluation should be identified on the application maps/figures."]
[null,"W-ES(4)","The map of the non-expansion AOR will include the following: (1) for all wells; include surface and bottom hole locations and labels that display their well type and status (e.g. active steamflood injector);  (2) all faults within one quarter mile of the non-expansion AOR, (3) all wells that have been identified as potential conduits to a USDW, and (4) both historical and current exemption boundaries.  "]
[null,"W-ES(5)","Well construction diagrams for all wells and boreholes within the non-expansion AOR that fail to meet zonal isolation requirements need to be provided. Each diagram will identify the depth and perforated interval of the well and borehole, cement plugs, casing damage, key geologic markers (e.g. injection zone, confining units), and USDW. Each well and borehole diagram should depict the entire history (e.g. sidetracks, redrills, and other mechanical changes)."]
[null,"W-ES(6)","Provide a water well survey (not required if a survey has been completed within past year). Water well locations within a quarter mile of the non-expansion AOR boundary shall be presented on a map and listed in an accompanying table.  The water well survey should utilize the following data sources (at a minimum): Department of Water Resources (DWR) well completion reports and GeoTracker Groundwater Ambient Monitoring and Assessment (GAMA) information system. The following information will be included in the table: location information, type (municipal, domestic, irrigation, industrial, stock), status (active, idle, abandoned, destroyed), owner, well completion depth and zone name, and depths for all screened intervals. On a case-by-case basis, an expanded water well survey may be necessary based upon potential risk to beneficial use water outside the limits of the non-expansion AOR boundary. For those well completion reports that do not provide the latitude and longitude coordinates, the Operator should attempt to determine its location by a field survey. "]
[null,"W-GS(1)","If not available in WellStar, provide, at a minimum, two cross sections (along strike and dip) through the non-expansion AOR that include the injection zone, confining units, the formation or units penetrated by injection wells with associated API numbers, water supply wells, locations of the base the USDW, deviated wells within the line of section (i.e. wells near the cross-section trace), and an explanation describing what colors and symbols mean. \n\nAll supporting maps (e.g. structural contour map) need to include the non-expansion AOR and project area, exemption boundaries (both historical and current), faults (with displacement information), lines of cross-section, a scale, an explanation describing what the symbols and colors used represent, north arrow, and identify the name of formation or unit mapped. "]
[null,"W-GS(2)","A type log, if provided, will include labeled geophysical curves and a vertical scale. "]
[null,"W-GS(4)","If the injection zone is not an exempted aquifer, then non-USDW determinations shall be made using water samples, representative of the reservoir, collected within the past 5 years. If no wells exist within the project area, then total dissolved solids (TDS) well log calculations can be used provided that: 1) The accuracy (i.e. percent error) of the computed result is validated with a water quality sample of the same injection zone groundwater within 1 mile of the project area; and 2) The method, calculations, and assumptions used in the TDS analysis are provided.   \n\nIf the Operator determines through water quality sampling or TDS calculations that the injection zone and/or overlying formations are non-USDWs, the lateral and vertical extent of this determination shall be defined on a map.\n\nPreviously submitted  and approved  non-USDW determinations may be incorporated by reference. The location of the referenced information needs to be clearly identified in the application. For example, “the non-USDW determination can be found in the ABC application dated XXXX on page x, section x.”  Or the referenced information must be included as an attachment to the application.  "]
[null,"W-GS(5)","Any groundwater quality data or well log analysis that will be used to justify the injection of fluids (e.g., showing that TDS concentrations within the proposed injection zone are equal to or greater than 10,000 milligrams per liter) must be accompanied by a written statement or report, prepared by a state-registered professional geologist or professional engineer, indicating the degree to which the water quality data is representative of the injectate fluid or native formation groundwater and provide justification for that conclusion.  \n\nPreviously submitted data and interpretations made that are signed and stamped by the appropriately registered professional may be incorporated by reference. The location of the referenced information needs to be clearly identified in the application (i.e., ABC application dated XXXX on page x, section x) , or the referenced information must be included as an attachment to the application."]
[null,"W-IP(3)","For all waterflood and water disposal non-expansion wells where the data is not available in WellStar, provide representative water quality data of the injectate; collected within the past year. The source of the injectate fluids should be identified including zone/formation and approximate volume percentages. The injection liquid to be analyzed shall be sampled after all additives (if any) are added to the liquid and after all treatment or separation processes (if any), to ensure that it is representative of the liquid actually injected. Any water sampling and analysis proposed should follow the most recent Notice to Operators regarding Guidelines for Collection of Oilfield Water Quality Data."]
[null,"W-SI","If an isobaric map created in the last 2 years is not available in WellStar, a representative isobaric map of the UIC project, generated for the top of the injection zone and showing the apparent fluid flow direction(s), shall be provided. In addition, all data used to construct the isobaric map shall be provided, and shall include at a minimum; one representative downhole reservoir pressure measured at the top of the injection zone and validated fluid level data from all idle and observation wells within the project area.\n\nIf the isobaric map uses reservoir pressures or fluid levels acquired from an active injection or production well, the operator shall calculate and validate the shut-in time required for the pressure to equalize. The required shut-in time calculations and validation process shall be submitted along with the isobaric map and downhole pressure data."]

{"sheet":"Data Checklist","index":3,"n_rows":190,"n_cols":14,"rows_kept":190,"cut":false,"hidden":true,"merged":[[27,13,29,13],[33,13,35,13],[36,13,39,13],[40,13,43,13],[44,13,46,13],[55,13,58,13],[59,13,62,13],[63,13,65,13],[66,13,69,13],[52,13,54,13],[47,13,48,13],[30,13,31,13],[134,13,141,13],[114,7,115,12],[114,1,115,5],[99,0,120,0],[74,1,77,5],[74,6,77,6],[94,1,97,5],[94,6,97,6],[109,7,110,12],[91,7,93,12],[94,7,97,12],[109,6,110,6],[78,1,82,5],[122,13,123,13],[124,13,127,13],[128,13,131,13],[91,13,93,13],[94,13,97,13],[103,13,105,13],[106,13,108,13],[109,13,110,13],[74,13,77,13],[83,6,90,6],[83,13,90,13],[18,0,18,12],[14,0,14,1],[8,0,8,1],[9,0,9,1],[11,0,11,1],[12,0,12,1],[13,0,13,1],[2,0,4,12],[52,7,54,12],[52,6,54,6],[40,1,43,5],[40,6,43,6],[36,6,39,6],[36,1,39,5],[40,7,43,12],[44,1,46,5],[29,7,29,12],[33,0,48,0],[47,6,48,6],[30,6,31,6],[30,7,31,12],[14,2,14,3],[66,7,69,12],[24,0,24,5],[20,0,22,12],[25,0,26,12],[50,0,69,0],[33,1,35,5],[55,7,58,12],[44,7,46,12],[44,6,46,6],[47,1,48,5],[28,6,29,6],[52,1,54,5],[33,6,35,6],[33,7,35,12],[36,7,39,12],[59,1,62,5],[55,6,58,6],[55,1,58,5],[59,7,62,12],[59,6,62,6],[66,6,69,6],[66,1,69,5],[30,0,31,5],[47,7,48,12],[134,7,141,12],[142,7,142,12],[103,6,105,6],[103,7,105,12],[134,6,141,6],[134,1,141,5],[98,7,98,12],[121,7,121,12],[63,6,65,6],[63,1,65,5],[63,7,65,12],[106,1,108,5],[106,6,108,6],[106,7,108,12],[128,1,131,5],[128,7,131,12],[128,6,131,6],[111,1,113,5],[111,6,113,6],[111,7,113,12],[103,1,105,5],[109,1,110,5],[114,6,115,6],[91,1,93,5],[132,7,133,12],[91,6,93,6],[74,7,77,12],[124,1,127,5],[124,6,127,6],[124,7,127,12],[122,7,123,12],[122,6,123,6],[122,1,123,5],[78,6,82,6],[111,13,113,13],[114,13,115,13],[83,1,90,5],[83,7,90,12],[74,0,97,0],[118,1,120,5],[116,1,117,5],[116,7,117,12],[116,13,117,13],[116,6,117,6],[118,6,120,6],[118,13,120,13],[101,1,102,5],[101,6,102,6],[101,7,102,12],[101,13,102,13],[118,7,120,12],[78,13,82,13],[184,1,188,12],[189,1,189,12],[50,1,51,12],[99,1,100,12],[72,6,73,6],[71,13,73,13],[73,7,73,12],[170,1,171,12],[143,0,144,12],[168,1,169,12],[146,1,148,12],[149,1,151,12],[152,1,154,12],[155,1,157,12],[158,1,160,12],[161,1,166,12],[173,1,173,12],[175,1,175,12],[177,1,183,12],[132,13,133,13],[132,6,133,6],[132,1,133,5],[122,0,141,0],[78,7,82,12]]}
[]
[]
["UNDERGROUND INJECTION CONTROL (UIC) \nPROJECT DATA REQUIREMENTS CHECKLIST"]
[]
[]
[]
[]
[]
["Project Type:",null,{"$f":"IF(#REF!=\"\",\"Summary tab not yet populated\",#REF!)","v":{"$error":"#REF!"}}]
["Operator:",null,{"$f":"IF(#REF!=\"\",\"Summary tab not yet populated\",#REF!)","v":{"$error":"#REF!"}}]
[null,"Project Name:",{"$f":"IF(#REF!=\"\",\"Summary tab not yet populated\",#REF!)","v":{"$error":"#REF!"}}]
["Project No.:",null,{"$f":"IF(#REF!=\"\",\"Summary tab not yet populated\",#REF!)","v":{"$error":"#REF!"}}]
["Field Name:",null,{"$f":"IF(#REF!=\"\",\"Summary tab not yet populated\",#REF!)","v":{"$error":"#REF!"}}]
["Zone:",null,{"$f":"IF(#REF!=\"\",\"Summary tab not yet populated\",#REF!)","v":{"$error":"#REF!"}}]
["Reviewing Engineer:"]
[null,"Date:",{"$f":"IF(#REF!=\"\",\"Summary tab not yet populated\",#REF!)","v":{"$error":"#REF!"}}]
[]
[]
["All data shall be submitted in a Division approved electronic format."]
[]
["Electronic submission of all subsurface mappable data (structure, isopachous, and AOR) shall be submitted as a PDF and/or the corresponding geospatial shapefile(s) and grids that can be plotted using GIS, to show the Area of Review (AOR) or Project Area determined. The polygons should clearly show the expected path of injectate, for life of the project."]
[]
[]
[]
["Project Data Requirements "]
["The Safe Drinking Water Act (SDWA), California Code of Regulations (CCR) Section 1724.7, and Public Resources Code (PRC) 3131 require that the following data be filed with the district deputy, where applicable:"]
[]
[null,null,null,null,null,null,null,null,null,null,null,null,null,"District \nReviewed"]
[null,null,null,null,null,null,"\nComplete"]
[null,null,null,null,null,null,null,"Description of Location in the Data Package"]
["PS(1) Statement of primary purpose of the project.",null,null,null,null,null,false,null,null,null,null,null,null,false]
[]
[]
[" Formation fluid quality determination & \nArea of Review (AOR). ","FA(1) For ACTIVE water disposal projects, determine current injectate front and pressure front to verify the AOR.1a",null,null,null,null,false,null,null,null,null,null,null,false]
[]
[]
[null,"FA(2) For compliance with SDWA, if injection zone is less than 10,000 TDS (USDW) and project area is within an exempt aquifer then, determine the Area of Review (AOR) for predicted project life.1a ",null,null,null,null,false,null,null,null,null,null,null,false]
[]
[]
[]
[null,"FA(3) For compliance with SDWA, if injection zone is less than 10,000 TDS (USDW) and project area is NOT entirely within an exempt aquifer then, submit a shut-in plan for wells outside exempt aquifer and/or submit an aquifer exemption expansion application. 1b",null,null,null,null,false,null,null,null,null,null,null,false]
[]
[]
[]
[null,"FA(4) If injection zone is greater than 10,000 TDS (non-USDW) then, determine AOR for predicted project life.1a",null,null,null,null,false,null,null,null,null,null,null,false]
[]
[]
[null,"FA(5) Submit calculation method with constants used for determining AOR. 1,1a",null,null,null,null,false,null,null,null,null,null,null,false]
[]
[]
["Geologic Study and Zonal Confinement","All maps, diagrams and exhibits required should be clearly labeled as to scale and purpose and shall clearly identify wells, boundaries, zones, contacts, and other relevant data that extend beyond the project area to ensure adequate review of the AOR."]
[]
[null,"GC(1) Geologic overview of the formation including discussion on vertical (top & bottom seals) and lateral confinement.",null,null,null,null,false,null,null,null,null,null,null,false]
[]
[]
[null,"GC(2) Structural contour map drawn on a geologic marker at or near the top of each injection zone in the project area as defined by the AOR. The map should show the wellbore paths of all existing and proposed wells in the map area with legible labels. 2",null,null,null,null,false,null,null,null,null,null,null,false]
[]
[]
[]
[null,"GC(3) Isopach map of each injection zone or subzone in the project area as defined by the AOR. The map should show the wellbore paths of all existing and proposed wells in the map area with legible labels.2",null,null,null,null,false,null,null,null,null,null,null,false]
[]
[]
[]
[null,"GC(4) At least two geologic cross sections, as appropriate, through at least one injection well in the project area as defined by the AOR. 2",null,null,null,null,false,null,null,null,null,null,null,false]
[]
[]
[null,"GC(5) Representative electric log (type log) to a depth below the deepest producing zone identifying all geologic units, formations, freshwater aquifers, USDW(s), and oil and gas zones submitted as a PDF.2,3",null,null,null,null,false,null,null,null,null,null,null,false]
[]
[]
[]
[]
[null,null,null,null,null,null,null,null,null,null,null,null,null,"District \nReviewed"]
[null,null,null,null,null,null,"\nComplete"]
[null,null,null,null,null,null,null,"Description of Location in the Data Package"]
["Engineering Study","ES(1) Reservoir characteristics of each injection zone, such as porosity, permeability, average thickness, areal extent, fracture gradient, original and present temperature and pressure, and original and residual oil, gas, and water saturations.",null,null,null,null,false,null,null,null,null,null,null,false]
[]
[]
[]
[null,"ES(2) Reservoir fluid data for each injection zone, such as oil gravity and viscosity, liquid quality, and specific gravity of gas. Formation fluid TDS determination should be from actual samples when available or log derivations may be accepted with submission of LAS logs and all constants used for verification.",null,null,null,null,false,null,null,null,null,null,null,false]
[]
[]
[]
[]
[null,"ES(3) Wellbore construction data for all wells that penetrate the injection zone and Division permitted water-source wells (that will be used in conjunction with the project) within the project area as defined by the AOR. Include all casing strings/liners with perforated intervals, cement plugs, actual or calculated cement fill behind casing, casing damage/holes (squeezed & unsqueezed), and geologic markers including, but not limited to: injection zone depth(s) freshwater depth(s), and USDW(s). Wellbore construction data shall be submitted in a digital format as designated by the State Oil & Gas Supervisor. 4",null,null,null,null,false,null,null,null,null,null,null,false]
[]
[]
[]
[]
[]
[]
[]
[null,"ES(4) Plugging and/or abandonment program to remediate problem wells that penetrate the injection zone.",null,null,null,null,false,null,null,null,null,null,null,false]
[]
[]
[null,"ES(5) A planned well-drilling program including a flood-pattern map showing all injection, production, plugged and abandoned wells, unit boundaries, and Division permitted water-source wells that will be used in conjunction with the project.",null,null,null,null,false,null,null,null,null,null,null,false]
[]
[]
[]
[]
["Injection Plan","Electronic submission of the injection plan shall be submitted as a PDF and/or the corresponding geospatial shapefile(s) and grids that can be plotted using GIS, to show the Area of Review (AOR) determined."]
[]
[null,"IP(1) A map showing injection facilities. 5",null,null,null,null,false,null,null,null,null,null,null,false]
[]
[null,"IP(2) Maximum anticipated surface injection pressure (pump pressure) and daily rate of injection, by well.",null,null,null,null,false,null,null,null,null,null,null,false]
[]
[]
[null,"IP(3) Monitoring system or method to be utilized to ensure that no damage is occurring and that the injection fluid is confined to the intended zone or zones of injection.",null,null,null,null,false,null,null,null,null,null,null,false]
[]
[]
[null,"IP(4) Method of injection.",null,null,null,null,false,null,null,null,null,null,null,false]
[]
[null,"IP(5) List of proposed cathodic protection measures for plant, lines, and wells, if such measures are warranted.",null,null,null,null,false,null,null,null,null,null,null,false]
[]
[]
[null,"IP(6) Treatment of fluid injected. 6",null,null,null,null,false,null,null,null,null,null,null,false]
[]
[null,"IP(7) Project Duration",null,null,null,null,false,null,null,null,null,null,null,false]
[]
[null,"IP(8) Source and analysis of the injection fluid to ensure injectate will not affect the quality of water that is, or may reasonably be, used for any beneficial use. 7",null,null,null,null,false,null,null,null,null,null,null,false]
[]
[]
[]
["Miscellaneous\nRequirements","MR(1) Copies of letters of notification sent to offset operators.",null,null,null,null,false,null,null,null,null,null,null,false]
[]
[null,"MR(2) Survey of all water wells within 1 mile of the project area as defined by the AOR with construction details to ensure the injection zone is not being used for beneficial use submitted as a PDF and spreadsheet.8",null,null,null,null,false,null,null,null,null,null,null,false]
[]
[]
[]
[null,"MR(3) Other data as required for large, unusual, or hazardous projects, for unusual or complex structures, or for critical wells. (Examples of such data are: isochore maps, water-oil ratio maps, isobar maps, equipment diagrams, and safety programs.)",null,null,null,null,false,null,null,null,null,null,null,false]
[]
[]
[]
[null,"MR(4) All recent fluid levels from idle wells located within the AOR. 9\n",null,null,null,null,false,null,null,null,null,null,null,false]
[]
[null,"MR(5) A cover page including a statement that a licensed professional, whose signature and stamp appears at the bottom of the page, is responsible for all data, interpretations, and calculations, if any, subject to the requirements of Business and Professions Code sections 6735, 7835, and 7835.1. If the operator determines that the submission does not include data, interpretations, or calculations subject to the requirements of Business and Professions Code sections 6735, 7835, and 7835.1, the cover page must so indicate, and must provide the name(s) and signature(s) of the individual(s) responsible for preparing the submission.",null,null,null,null,false,null,null,null,null,null,null,false]
[]
[]
[]
[]
[]
[]
[]
[]
["To help expedite the Water Board's review and to memorialize DOGGR’s analysis in a reference document, please identify the location of the data identified below."]
[]
[]
["1.","Evaluation of the area of review (AOR), Project Area, and supporting calculations and assumptions and cumulative injection volumes for all water disposal wells that have historically injected into the injection zone within the AOR."]
[]
[]
["1a.","For ALL project review (i.e., including ongoing projects, new projects, and expansions of existing project) provide an estimate regarding the anticipated distance and direction of migration of any Class II fluids to be injected during the remaining life of the project."]
[]
[]
[null,"The application must include a statement and supporting rationale demonstrating that injected Class II fluids have not (for ongoing projects) and will not (for any project) migrate beyond the boundaries of the exempt aquifer or into a non-USDW."]
[]
[]
[null,"Any evaluation of past, or anticipated future, migration of injectate fluids involving interpretation of geologic or engineering information must be conducted by, or under the direct supervision of, a state-registered professional geologist or professional engineer."]
[]
[]
["1b.","Immediately notify the operator of any changes to the existing project status or new project/project expansion review schedule resulting from these findings (potentially including termination of existing project, temporary suspension of the current project review activities, etc.)."]
[]
[]
["2.","Supporting maps, cross sections, well logs, calculations, and references to find more detailed information. The maps should show the AOR and Project Area, existing exemption boundaries, faults (with displacement information), lines of cross-section, a scale, north arrow and identify the name of formation or unit mapped. Also, structural contour and isopach maps of upper and lower \"confining\" units.\" Representative permeability and porosity values, if available, of the \"confining\" units should be labeled on these maps. The cross-sections should also show AOR(s), the proposed injection zone, confining units, the formation or units penetrated by injection with associated API numbers, water supply wells, locations of the BFW and USDW, and deviated wells within the line of section (i.e. wells near the cross-section trace)."]
[]
[]
[]
[]
[]
[]
["3.","The type log should also include the well's API number, the BFW, all formation names, key e-log markers, labeled geophysical curves and a vertical scale."]
[]
["4.","Identification of location and depth of all wells and bore holes. Each well and bore hole diagram should depict the entire history (e.g. sidetracks, redrills, and other mechanical changes)."]
[]
[]
["5.","The map should show the location of any pretreatment facilities, location of proposed injection wells and any other injection wells plumbed to the facility."]
[]
["6.","Information to include type of treatment and plan for the disposal of reject water."]
[]
["7.","Data on water quality of injection zone collected from wells located within the AOR and injectate. The source of the injectate fluids should be identified including zone/formation and approximate volume percentages. Sampling protocol for existing projects (PxP) should be provided. Any proposed water sampling and analysis proposed for new or expanded projects should follow the updated Notice to Operators (NTO, 2018). Footnote 8b = Any water quality data that will be used to justify the injection of fluids (e.g., showing that TDS concentrations within the propose injection zone are greater than 10,000 mg/L) must be accompanied by a written statement or report, prepared by a state-registered professional geologist or professional engineer, indicating the degree to which the water quality data is representative of the injectate fluid or native formation waters and providing justification for that conclusion."]
[]
[]
[]
[]
[]
[]
["8.","Water well survey. Water supply well locations within the project area should be presented on a map and displayed in a spreadsheet. The water supply well survey should utilize the following data sources (at a minimum): DWR well completion reports and GeoTracker Groundwater Ambient Monitoring and Assessment (GAMA) information system. The following information should be included in the spreadsheet: location information, type (municipal, domestic, irrigation, industrial, stock), status (active, idle, abandoned, destroyed), owner, well completion depth and zone name, top screen, bottom screen."]
[]
[]
[]
[]
["9.","These data are necessary in order to calculate hydraulic gradients and groundwater flow directions."]

{"sheet":"Microsoft Project Dates","index":4,"n_rows":31,"n_cols":5,"rows_kept":31,"cut":false,"hidden":true,"merged":[]}
[]
[null,null,"Begin","End","Duration"]
[null,"Project Analysis",{"$f":"IF(#REF!=\"\",\"\",#REF!)","v":{"$error":"#REF!"}},{"$f":"IF(#REF!=\"\",\"\",C3+#REF!)","v":{"$error":"#REF!"}},{"$f":"IF(D3=\"\",IF(C3=\"\",\"\",\">\"&TODAY()-C3),IF(D3=C3,1,D3-C3))","v":{"$error":"#REF!"}}]
[null,"Data Gap Analysis",{"$f":"IF(#REF!=\"\",\"\",'Microsoft Project Dates'!C3+#REF!-1)","v":{"$error":"#REF!"}},{"$f":"IF(#REF!=\"\",\"\",C4+#REF!-1)","v":{"$error":"#REF!"}},{"$f":"IF(D4=\"\",IF(C4=\"\",\"\",\">\"&TODAY()-C4),IF(D4=C4,1,D4-C4))","v":{"$error":"#REF!"}}]
[null,"Finished Review of Data Completeness","N/A",{"$f":"IF(D4=\"\",\"\",D4)","v":{"$error":"#REF!"}},"N/A"]
[null,"Obtain Missing Data from Operator",{"$f":"IF(#REF!=\"\",\"\",#REF!+'Microsoft Project Dates'!C3)","v":{"$error":"#REF!"}},{"$f":"IF(#REF!=\"\",\"\",#REF!+'Microsoft Project Dates'!C6)","v":{"$error":"#REF!"}},{"$f":"IF(D6=\"\",IF(C6=\"\",\"\",\">\"&TODAY()-C6),IF(D6=C6,1,D6-C6))","v":{"$error":"#REF!"}}]
[null,"Digitize Data for Electronic Project File",{"$f":"IF(#REF!=\"\",\"\",#REF!+'Microsoft Project Dates'!C3)","v":{"$error":"#REF!"}},{"$f":"IF(#REF!=\"\",\"\",#REF!+C7)","v":{"$error":"#REF!"}},{"$f":"IF(D7=\"\",IF(C7=\"\",\"\",\">\"&TODAY()-C7),IF(D7=C7,1,D7-C7))","v":{"$error":"#REF!"}}]
[null,"Electronic File is complete","N/A",{"$f":"IF(D7=\"\",\"\",D7)","v":{"$error":"#REF!"}},"N/A"]
[null,"Quality Review of Project Data",{"$f":"IF(#REF!=\"\",\"\",#REF!+'Microsoft Project Dates'!C3)","v":{"$error":"#REF!"}},{"$f":"IF(#REF!=\"\",\"\",C3+#REF!+#REF!)","v":{"$error":"#REF!"}},{"$f":"IF(D9=\"\",IF(C9=\"\",\"\",\">\"&TODAY()-C9),IF(D9=C9,1,D9-C9))","v":{"$error":"#REF!"}}]
[null,"Obtain Additional data?",{"$f":"IF(#REF!=\"\",\"\",#REF!+C3)","v":{"$error":"#REF!"}},{"$f":"IF(#REF!=\"\",\"\",#REF!+C10)","v":{"$error":"#REF!"}},{"$error":"#REF!"}]
[null,"Evaluate ZEI",{"$f":"IF(#REF!=\"\",\"\",#REF!+C3)","v":{"$error":"#REF!"}},{"$f":"IF(C11=\"\",\"\",C11+1)","v":{"$error":"#REF!"}},{"$error":"#REF!"}]
[null,"Data is Sufficient","N/A",{"$f":"IF(D9=\"\",\"\",D9)","v":{"$error":"#REF!"}},"N/A"]
[null,"Check to see if the Reservoir requires an exemption",{"$f":"IF(C4=\"\",\"\",C4)","v":{"$error":"#REF!"}},{"$f":"IF(C13=\"\",\"\",C13)","v":{"$error":"#REF!"}},{"$error":"#REF!"}]
[null,"Secure an exemption",{"$f":"IF(C13=\"\",\"\",C13)","v":{"$error":"#REF!"}}]
[null,"No exemption needed","N/A",{"$f":"IF(C13=\"\",\"\",C13)","v":{"$error":"#REF!"}},"N/A"]
[null,"Move to Review Stage","N/A",{"$f":"IF(C9=\"\",\"\",C9)","v":{"$error":"#REF!"}},"N/A"]
[null,"Technical Review",{"$f":"IF(C9=\"\",\"\",C9)","v":{"$error":"#REF!"}},{"$f":"IF(#REF!=\"\",\"\",#REF!+#REF!+C3)","v":{"$error":"#REF!"}},{"$error":"#REF!"}]
[null,"Geologic Review",{"$f":"IF(C9=\"\",\"\",C9)","v":{"$error":"#REF!"}},{"$f":"IF(D17=\"\",\"\",D17)","v":{"$error":"#REF!"}},{"$error":"#REF!"}]
[null,"Operational Review",{"$f":"IF(C9=\"\",\"\",C9)","v":{"$error":"#REF!"}},{"$f":"IF(D17=\"\",\"\",D17)","v":{"$error":"#REF!"}},{"$error":"#REF!"}]
[null,"Reservoir Review",{"$f":"IF(C21=\"\",\"\",C21)","v":{"$error":"#REF!"}},{"$f":"IF(D23=\"\",\"\",D23)","v":{"$error":"#REF!"}},{"$error":"#REF!"}]
[null,"ZEI Evaluation",{"$f":"IF(C11=\"\",\"\",C11)","v":{"$error":"#REF!"}},{"$f":"IF(D11=\"\",\"\",D11)","v":{"$error":"#REF!"}},{"$error":"#REF!"}]
[null,"AOR Evaluation",{"$f":"IF(#REF!=\"\",\"\",+C3+#REF!)","v":{"$error":"#REF!"}},{"$f":"IF(#REF!=\"\",\"\",#REF!+#REF!+C3)","v":{"$error":"#REF!"}},{"$error":"#REF!"}]
[null,"Define Operational Plan & draft PAL",{"$f":"IF(#REF!=\"\",\"\",#REF!+'Microsoft Project Dates'!C3)","v":{"$error":"#REF!"}},{"$f":"IF(#REF!=\"\",\"\",#REF!+'Microsoft Project Dates'!C23)","v":{"$error":"#REF!"}},{"$error":"#REF!"}]
[null,"Project Review Completed","N/A",{"$f":"IF(D23=\"\",\"\",D23)","v":{"$error":"#REF!"}},"N/A"]
[null,"Review by HQ",{"$f":"IF(#REF!=\"\",\"\",#REF!+'Microsoft Project Dates'!C3)","v":{"$error":"#REF!"}},{"$f":"IF(#REF!=\"\",\"\",#REF!+C25)","v":{"$error":"#REF!"}},{"$error":"#REF!"}]
[null,"Additional District Review",{"$f":"IF(#REF!=\"\",\"\",#REF!+'Microsoft Project Dates'!C3)","v":{"$error":"#REF!"}},{"$f":"IF(#REF!=\"\",\"\",#REF!+'Microsoft Project Dates'!C26)","v":{"$error":"#REF!"}},{"$error":"#REF!"}]
[null,"Division Approves the PAL Language","N/A",{"$f":"IF(D26=\"\",\"\",D26)","v":{"$error":"#REF!"}},"N/A"]
[null,"Water Board Review",{"$f":"IF(#REF!=\"\",\"\",#REF!+'Microsoft Project Dates'!C3)","v":{"$error":"#REF!"}},{"$f":"IF(#REF!=\"\",\"\",#REF!+'Microsoft Project Dates'!C28)","v":{"$error":"#REF!"}},{"$error":"#REF!"}]
[null,"Public Review",{"$f":"IF(#REF!=\"\",\"\",#REF!+'Microsoft Project Dates'!C3)","v":{"$error":"#REF!"}},{"$f":"IF(C29=\"\",\"\",C29+15)","v":{"$error":"#REF!"}},{"$f":"IF(D29=\"\",IF(C29=\"\",\"\",\">\"&TODAY()-C29),IF(D29=C29,1,D29-C29))","v":{"$error":"#REF!"}}]
[null,"Received Water Board Concurrence","N/A",{"$f":"IF(#REF!=\"\",\"\",#REF!+#REF!+'Microsoft Project Dates'!C3)","v":{"$error":"#REF!"}},"N/A"]
[null,"Finalize & Issue PAL","N/A",{"$f":"IF(#REF!=\"\",\"\",#REF!+'Microsoft Project Dates'!C3)","v":{"$error":"#REF!"}},"N/A"]